Cogmind - Beta 10.2 @@@ ROGUE MODE // 2021.07.31 @ 21:23:19 Player: youngster Result: Destroyed by P-80 Master with Gamma Rifle Performance ------------- Evolutions (7) 3500 Regions Visited (13) 2600 Robots Destroyed (139) 695 Value Destroyed (4297) 4297 Prototype IDs (46) 920 Alien Tech Used (0) 0 Bonus (1237) 1237 TOTAL SCORE: 13249 Bonus ------- High Alert Combat Kills 572 Follower Combat Kills 410 Aligned with FarCom 300 Friendly Fire -45 Cogmind --------- Core Integrity 0/1300 Matter 144/300 Energy 24/100 System Corruption 25% Temperature Cool (0) Movement Core (50) Location -3/Research Parts ------- > --- POWER (2) -------- (None) > --- PROPULSION (4) --- (None) > --- UTILITY (10) ----- (None) > --- WEAPON (5) ------- (None) > --- INVENTORY (4) ---- Centrium Heavy Treads YOLO Cannon Peak State ------------ > --- POWER ------------ Backup Power III Light Antimatter Reactor > --- PROPULSION ------- Heavy Siege Treads Impulse Thruster Array > --- UTILITY ---------- Lightpack 2.0 Triangulator Focal Shield Advanced Integration Mediator > --- WEAPON ----------- Backup Laser III Backup Laser III Heavy Machine Gun Railgun Heavy Gauss Cannon > --- INVENTORY -------- Light Antimatter Reactor Light Particle Reactor Light Particle Reactor Heavy Treads Advanced Medium Treads Centrium Heavy Treads Biometal Leg Backup Propulsion III Advanced Heat Sink High-capacity Storage Unit Layered Heavy Armor Plating Improved Shock Absorption System Antimissile System Advanced Component Analysis Suite Advanced Field Recycling Unit Heavy Disruptor Cannon YOLO Cannon [Rating: 118] Favorites ----------- Power Light Nuclear Core Engine Ion Engine Power Core Light Nuclear Core Reactor Light Antimatter Reactor Propulsion Light Treads Treads Light Treads Leg Biometal Leg Hover Unit Backup Propulsion III Flight Unit Impulse Thruster Array Utility Lightpack 2.0 Device Terrain Scanner Storage Lightpack 2.0 Processor Improved Signal Interpreter Hackware System Shield Protection Weapon Shielding Weapon Improved Assault Rifle Energy Gun EM Pulse Gun Energy Cannon Heavy Disruptor Cannon Ballistic Gun Improved Assault Rifle Ballistic Cannon Heavy Gauss Cannon Launcher Shock Bomb Launcher Special Weapon Plasma Cutter Impact Weapon Mace Slashing Weapon Katana Special Melee Weapon Datajack Build | -11 -10 -10 -9 -9 -9 -8 -8 -8 -8 -6 -5 -4 -3 ------- Run | Scr Mat Min Mat Min Exi Min Mat Sto Rec Fac Fac Fac Res Slots Evolved 14 | . . . 2 . . . 2 . . 4 2 2 2 Power 1 | . . . . . . . . . . 1 . . . Propulsion 2 | . . . . . . . . . . 1 . 1 . Utility 8 | . . . 1 . . . 1 . . 1 2 1 2 Weapon 3 | . . . 1 . . . 1 . . 1 . . . Parts Attached 154 | 6 7 6 22 8 4 3 12 15 6 10 28 6 21 Power 15 | 1 . 1 3 1 . 1 1 1 1 1 2 . 2 Engine 5 | 1 . . 3 . . . . . . 1 . . . Core 8 | . . 1 . 1 . 1 1 1 1 . 2 . . Reactor 2 | . . . . . . . . . . . . . 2 Propulsion 29 | 2 . . 5 1 . 1 3 1 . 2 5 1 8 Treads 26 | 2 . . 5 1 . 1 3 1 . 2 4 1 6 Leg 1 | . . . . . . . . . . . . . 1 Wheel . | . . . . . . . . . . . . . . Hover 1 | . . . . . . . . . . . 1 . . Flight 1 | . . . . . . . . . . . . . 1 Utility 46 | 1 3 . 4 2 3 . 5 4 1 2 13 2 6 Device 23 | . . . 1 1 1 . 2 1 . 1 10 2 4 Storage 6 | 1 2 . . . 1 . . . . . 1 . 1 Processor 4 | . . . . . 1 . 1 1 . . . . 1 Hackware 1 | . . . . . . . . . 1 . . . . Protection 12 | . 1 . 3 1 . . 2 2 . 1 2 . . Artifact . | . . . . . . . . . . . . . . Weapon 64 | 2 4 5 10 4 1 1 3 9 4 5 8 3 5 Energy Gun 10 | 1 3 2 3 . . 1 . . . . . . . Energy Cannon 6 | . . . 1 . . . . . . . 1 2 2 Ballistic Gun 26 | 1 . 1 6 2 . . 2 2 2 5 3 . 2 Ballistic Cannon 3 | . . . . . . . . . . . 1 1 1 Launcher 9 | . . 1 . 2 . . 1 1 1 . 3 . . Special Weapon 1 | . . . . . . . . 1 . . . . . Impact Weapon 1 | . 1 . . . . . . . . . . . . Slashing Weapon 4 | . . . . . . . . 4 . . . . . Piercing Weapon . | . . . . . . . . . . . . . . Special Melee Weapon 4 | . . 1 . . 1 . . 1 1 . . . . Unidentified Prototypes 3 | . . . 1 . . . . . . 1 . . 1 Parts Lost 44 | . . 1 6 2 . 2 1 4 1 . 15 . 12 Power 10 | . . . 2 . . 1 . 1 1 . 2 . 3 Propulsion 9 | . . . 1 . . 1 . . . . 5 . 2 Utility 11 | . . . 1 2 . . . 1 . . 3 . 4 Weapon 14 | . . 1 2 . . . 1 2 . . 5 . 3 Highest Loss Streak 8 | . . 1 3 2 . 2 1 4 1 . 8 . 5 Average Slot Usage (%) 86 | . 99 100 97 99 93 86 87 89 89 88 78 31 54 Engine 5 | . 14 12 9 1 . . . . . 3 3 6 4 Core 4 | . . 1 . 9 11 10 8 8 8 6 4 . . Treads 19 | . 28 28 21 22 22 21 18 18 18 17 13 2 7 Device 6 | . . . 11 10 11 11 10 4 . 2 11 2 12 Storage 9 | . 20 14 11 11 11 11 9 9 9 6 5 5 3 Processor 2 | . . . . . . . 1 9 9 6 4 . 1 Hackware 1 | . . . . . . . . . 8 6 4 . . Protection 5 | . 6 14 10 10 5 . 5 4 . 4 2 . . Energy Gun 7 | . 27 15 7 11 1 7 7 . . . . 6 6 Ballistic Gun 16 | . . 11 24 21 22 22 25 26 14 26 18 . 7 Slashing Weapon 2 | . . . . . . . . 8 9 6 4 . . Special Melee Weapon 1 | . . . . . 9 3 . . 4 . . . . Naked Turns 65 | . . . . . . . . . . . 2 . 63 Heaviest Build 78 | 12 19 18 28 26 26 20 26 33 26 34 40 45 78 Greatest Support 140 | 40 40 40 40 43 43 43 43 42 42 72 75 18 140 Greatest Overweight (x) 2 | 1 . . 1 . . . . . . . 1 2 2 Average Overweight (x) . | . . . . . . . . . . . . . . Largest Inventory Capacity 24 | 6 8 8 8 8 24 24 24 24 24 24 24 24 24 Average Capacity 16 | 5 7 8 8 8 16 24 24 24 24 24 23 24 19 Most Carried 24 | 2 8 8 8 8 13 13 24 24 24 24 24 11 24 Average Carried 14 | 1 7 7 7 8 9 12 22 23 24 23 20 7 13 Final Capacity 24 | 6 8 8 8 8 24 24 24 24 24 24 24 24 4 Final Carried 24 | 2 8 8 8 8 13 12 24 24 24 24 4 11 4 Class Distribution -------------------- 20% | Mutant 18% | Hauler-Skirmisher 15% | Scavenger-Tank 15% | Hauler-Mutant 7% | Hauler-Gunner 5% | Skirmisher 4% | Commander-Tank 4% | Commander-Mutant Dominant Class ---------------- Mutant | -10/Materials Mutant | -10/Mines Skirmisher | -9/Materials Scavenger-Tank | -9/Mines Hauler-Mutant | -9/Exiles Hauler-Skirmisher | -8/Mines Hauler-Skirmisher | -8/Materials Hauler-Skirmisher | -8/Storage Hauler-Mutant | -8/Recycling Commander-Tank | -6/Factory Hauler-Skirmisher | -5/Factory Hauler-Mutant | -4/Factory Hauler-Gunner | -3/Research Resources | -11 -10 -10 -9 -9 -9 -8 -8 -8 -8 -6 -5 -4 -3 ----------- Run | Scr Mat Min Mat Min Exi Min Mat Sto Rec Fac Fac Fac Res Matter Collected 4232 | 260 220 71 657 242 66 152 258 465 318 147 924 98 354 Remotely 328 | . . . . . . . . . . . 328 . . Salvage Created 5790 | . 517 117 1065 533 . 170 367 807 539 139 984 98 454 Parts 325 | . 34 7 70 36 . 7 24 43 28 8 42 5 21 Haulers Intercepted 7 | . 2 . 5 . . . . . . . . . . Recyclers Shooed 8 | . . 1 . . . . . 2 5 . . . . Parts Field Recycled . | . . . . . . . . . . . . . . Retrieved Matter . | . . . . . . . . . . . . . . Parts Self-Destructed . | . . . . . . . . . . . . . . Prevented . | . . . . . . . . . . . . . . Kills | -11 -10 -10 -9 -9 -9 -8 -8 -8 -8 -6 -5 -4 -3 ------- Run | Scr Mat Min Mat Min Exi Min Mat Sto Rec Fac Fac Fac Res Combat Hostiles Destroyed 102 | . 8 5 19 10 . 3 7 12 9 2 17 2 8 Guns 74 | . 5 2 19 8 . 3 7 9 . 2 15 . 4 Cannons 5 | . . . . . . . . . . . 2 . 3 AOE 23 | . 3 3 . 2 . . . 3 9 . . 2 1 Classes Destroyed 15 | . 6 . 2 3 . . . . 1 . 2 . 1 Worker 6 | . . . . 2 . . . 2 . . 1 . 1 Builder 6 | . . . 1 . . . . . 2 . 1 . 2 Tunneler 1 | . . . . 1 . . . . . . . . . Hauler 7 | . 2 . 5 . . . . . . . . . . Recycler 11 | . 1 . 1 2 . . . 3 3 . 1 . . Operator 3 | . 1 . 2 . . . . . . . . . . Drone 9 | . . . . . . . . . 9 . . . . Watcher 3 | . 1 . . . . . . 1 . . . . 1 Swarmer 23 | . 3 3 3 4 . . . 3 . . 4 . 3 Grunt 44 | . 5 2 9 5 . 3 4 5 . . 9 2 . Brawler 1 | . . . . 1 . . . . . . . . . Duelist 1 | . . . . . . . . . . . 1 . . Sentry 18 | . . . 7 . . . 3 4 . 2 1 . 1 Hunter 2 | . . . . . . . . . . . . . 2 Programmer 4 | . . . . . . . . . . . 2 . 2 Best Kill Streak 12 | . 3 3 8 6 . 3 3 12 4 1 5 2 5 Combat Bots Only 7 | . 2 3 7 6 . 3 3 7 3 1 5 2 2 Max Kills in Single Turn 4 | . 2 2 2 2 . 1 1 4 2 1 1 2 1 Gunslinging 1 | . . . 1 1 . . . . . . . . . Exploded 3 | . 2 2 . 1 . . . 3 1 . . 2 1 Melee . | . . . . . . . . . . . . . . Uniques/NPCs Destroyed . | . . . . . . . . . . . . . . Combat | -11 -10 -10 -9 -9 -9 -8 -8 -8 -8 -6 -5 -4 -3 -------- Run | Scr Mat Min Mat Min Exi Min Mat Sto Rec Fac Fac Fac Res Damage Taken 9750 | . 292 117 1129 349 . 361 243 579 66 410 2985 51 3168 Core 2349 | . 84 . 113 31 . 83 14 89 . 40 576 . 1319 Absorbed by Shields 30 | . . . . . . . . . . 30 . . . Core Remaining (%) 75 | 100 . 66 . . . 43 . . 81 95 42 100 . Volleys Fired 319 | . 35 8 80 18 . 10 12 22 36 5 48 1 44 Largest 5 | . 2 2 3 3 . 3 4 4 3 4 4 1 5 Hottest 206 | . 80 80 125 98 . 91 119 115 87 112 128 100 206 Shots Fired 852 | . 70 15 229 51 . 30 47 64 39 20 166 1 120 Gun 747 | . 70 13 229 47 . 30 47 59 2 20 143 . 87 Cannon 47 | . . . . . . . . . . . 13 1 33 Launcher 58 | . . 2 . 4 . . . 5 37 . 10 . . Special . | . . . . . . . . . . . . . . Kinetic 591 | . . 2 185 30 . 20 38 59 2 20 155 . 80 Thermal 79 | . . . 37 . . . . . . . 1 1 40 Explosive 14 | . . 2 . 4 . . . . . . 8 . . Electromagnetic 168 | . 70 11 7 17 . 10 9 5 37 . 2 . . Robot Hit Streak 36 | . 4 6 26 10 . 15 14 20 11 18 36 1 15 Robot Miss Streak 6 | . 4 1 5 2 . 3 3 3 6 . 3 . 4 Penetration Max 1 | . . . . . . . . . . . . . 1 Secondary Targets 13 | . 2 . 4 3 . 1 1 . . . 2 . . Max Gunslinging Chain 1 | . 1 . 1 1 . 1 1 . . . 1 . . Shots Hit Robots 683 | . 39 14 171 29 4 23 40 43 101 18 118 1 82 Core Hits 329 | . 18 9 66 18 . 8 20 44 20 5 85 3 33 Critical Hits 8 | . . . . . . . . . 1 . 2 . 5 Critical Kills 2 | . . . . . . . . . . . 1 . 1 Critical Parts Destroyed 6 | . . . . . . . . . 1 . 1 . 4 Melee Attacks 132 | . . 3 . . 4 . . 20 97 3 5 . . Impact . | . . . . . . . . . . . . . . Slashing 35 | . . . . . . . . 20 7 3 5 . . Piercing . | . . . . . . . . . . . . . . Sneak Attacks 91 | . . 3 . . 4 . . 1 81 1 1 . . Combat Hostiles . | . . . . . . . . . . . . . . Follow-up Attacks . | . . . . . . . . . . . . . . Damage Inflicted 13334 | . 779 339 2054 519 . 304 678 1132 1519 437 3040 352 2181 Guns 8127 | . 551 126 2017 302 . 302 678 690 29 323 1836 . 1273 Cannons 959 | . . . . . . . . . . . 258 146 555 Explosions 3176 | . 228 184 . 180 . . . 328 881 . 838 206 331 Melee 925 | . . . . . . . . 99 609 109 108 . . Ramming 147 | . . 29 37 37 . 2 . 15 . 5 . . 22 Kinetic 6838 | . . 17 1501 161 . 155 563 690 29 323 2094 . 1305 Thermal 1984 | . 228 . 417 33 . . . 40 60 . . 352 854 Explosive 1050 | . . 184 . 147 . . . . . . 719 . . Electromagnetic 2390 | . 551 109 99 141 . 147 115 288 821 . 119 . . Impact . | . . . . . . . . . . . . . . Slashing 925 | . . . . . . . . 99 609 109 108 . . Piercing . | . . . . . . . . . . . . . . Highest Corruption 25 | . . . . 4 4 4 . 18 19 . 1 . 25 Average Corruption 10 | . . . . 4 4 4 . 18 18 . 1 . 9 Corruption Purged . | . . . . . . . . . . . . . . Effects 200 | . . . . 21 13 7 . 54 85 . 3 . 17 Message Errors 39 | . . . . 4 5 2 . 9 16 . 1 . 2 Matter Fused 32 | . . . . 7 5 1 . 7 12 . . . . Heat Flow Errors 16 | . . . . 2 2 1 . 5 4 . . . 2 Energy Discharges 15 | . . . . 5 1 1 . 2 6 . . . . Data Loss (minor) 13 | . . . . 1 . . . 4 5 . 1 . 2 Data Loss (major) 1 | . . . . . . . . 1 . . . . . Misfires 6 | . . . . . . . . 4 2 . . . . Misdirections 22 | . . . . . . . . 7 9 . . . 6 Targeting Errors 52 | . . . . 2 . 2 . 13 30 . . . 5 Weapon Failures 4 | . . . . . . . . 2 1 . 1 . . Overload Shots . | . . . . . . . . . . . . . . Overflow Damage 466 | . . . . . . . . 66 227 79 5 86 3 Projectiles 94 | . . . . . . . . . . . 5 86 3 Explosions 96 | . . . . . . . . 7 89 . . . . Melee 276 | . . . . . . . . 59 138 79 . . . Knockbacks 19 | . . 1 . . . . . . . . 16 . 2 Impact 1 | . . 1 . . . . . . . . . . . Kinetic 16 | . . . . . . . . . . . 14 . 2 Secondary 2 | . . . . . . . . . . . 2 . . Self-Inflicted Damage 306 | . 29 . . 29 . . . . 66 . 17 51 114 Shots 11 | . 1 . . 1 . . . . 6 . 1 1 1 Rammed 24 | . 1 5 4 7 . 1 . 1 . 1 . . 4 Targets Rammed 26 | . 1 5 5 8 . 1 . 1 . 1 . . 4 Kicked . | . . . . . . . . . . . . . . Crushed 2 | . . . 1 1 . . . . . . . . . Highest Temperature 387 | . 156 120 275 208 264 223 15 256 273 106 341 2 387 Average Temperature 74 | . 48 62 76 44 121 53 5 59 101 51 104 2 115 Received Heat Transfer 2097 | . 96 48 387 54 . 198 126 117 . 39 981 . 51 Effects 7 | . . . 3 . . . . . . . 4 . . Energy Bleed 1 | . . . . . . . . . . . 1 . . Interference 6 | . . . 3 . . . . . . . 3 . . Siege Activations . | . . . . . . . . . . . . . . Robots Corrupted 1 | . 1 . . . . . . . . . . . . Combat Hostiles . | . . . . . . . . . . . . . . Parts Fried 7 | . 2 . . . . . . 2 3 . . . . Impact Corruptions . | . . . . . . . . . . . . . . Robots Melted . | . . . . . . . . . . . . . . Combat Hostiles . | . . . . . . . . . . . . . . Parts Melted 3 | . . . 1 . . . . . . . . 1 1 Heat Transferred 2806 | . 300 . 637 . . . . 50 100 . . 320 1399 Parts Sabotaged . | . . . . . . . . . . . . . . Parts Stolen . | . . . . . . . . . . . . . . Parts Stripped . | . . . . . . . . . . . . . . Power Chain Reactions 9 | . 4 . . 1 . . . 1 3 . . . . Missiles Intercepted . | . . . . . . . . . . . . . . Alert | -11 -10 -10 -9 -9 -9 -8 -8 -8 -8 -6 -5 -4 -3 ------- Run | Scr Mat Min Mat Min Exi Min Mat Sto Rec Fac Fac Fac Res Peak Influence 1357 | . 203 125 364 317 . 65 228 465 582 1357 903 987 496 Initial 1144 | . . . 7 102 . . 25 40 122 1144 587 442 412 Average 316 | . 68 46 117 141 . 38 110 207 391 1188 721 826 372 Maximum Alert Level 4 | . 1 . 1 1 . . 1 2 2 4 3 3 2 Low Security (%) 50 | 100 97 100 82 68 . 100 76 42 14 . . . . Level 1 18 | . 2 . 17 31 . . 23 39 25 . . . 52 Level 2 16 | . . . . . . . . 18 60 . 43 23 47 Level 3 7 | . . . . . . . . . . . 56 76 . Level 4 6 | . . . . . . . . . . 100 . . . Level 5 . | . . . . . . . . . . . . . . High Security . | . . . . . . . . . . . . . . Max Security . | . . . . . . . . . . . . . . Squads Dispatched 20 | . 1 . 3 . . . 2 3 . 1 4 1 5 Investigation 5 | . . . 1 . . . 1 1 . . 2 . . Extermination 3 | . . . . . . . . . . . 1 . 2 Reinforcement 8 | . 1 . 2 . . . 1 1 . 1 . 1 1 Assault 1 | . . . . . . . . . . . 1 . . Garrison 3 | . . . . . . . . 1 . . . . 2 Intercept . | . . . . . . . . . . . . . . Construction Impeded 2 | . . . . . . . . . . 1 . . 1 Haulers Reinforced 1 | . . . . . . . . . . . . 1 . Stealth | -11 -10 -10 -9 -9 -9 -8 -8 -8 -8 -6 -5 -4 -3 --------- Run | Scr Mat Min Mat Min Exi Min Mat Sto Rec Fac Fac Fac Res Distress Signals 5 | . 1 1 . . . . 1 2 . . . . . Communications Jammed 24 | . . . . . . . . . . . 24 . . Distress Signals 24 | . . . . . . . . . . . 24 . . Times Spotted 193 | . 20 9 27 10 . 3 11 14 30 10 32 4 23 Peak Tracking Total 11 | . 4 3 4 6 . 3 4 6 4 3 7 3 11 Tactical Retreats 9 | . 1 . 1 . . . . 1 . . 4 1 1 Traps | -11 -10 -10 -9 -9 -9 -8 -8 -8 -8 -6 -5 -4 -3 ------- Run | Scr Mat Min Mat Min Exi Min Mat Sto Rec Fac Fac Fac Res Traps Triggered 4 | . 1 . 1 . . . 1 . . . . 1 . Indirectly . | . . . . . . . . . . . . . . Trap Hack Attempts . | . . . . . . . . . . . . . . Triggered . | . . . . . . . . . . . . . . Disarmed 3 | . . . 3 . . . . . . . . . . Reprogrammed . | . . . . . . . . . . . . . . Reused . | . . . . . . . . . . . . . . Traps Extracted . | . . . . . . . . . . . . . . Installed . | . . . . . . . . . . . . . . Triggered . | . . . . . . . . . . . . . . Exploded 1 | . . . . . . . . . . . 1 . . Machines | -11 -10 -10 -9 -9 -9 -8 -8 -8 -8 -6 -5 -4 -3 ---------- Run | Scr Mat Min Mat Min Exi Min Mat Sto Rec Fac Fac Fac Res Machines Disabled 27 | . 4 1 1 . . 1 . 4 12 2 1 . 1 Max in Single Turn 3 | . 2 1 1 . . 1 . 1 3 . 1 . 1 Machines Sabotaged . | . . . . . . . . . . . . . . Garrisons Compromised . | . . . . . . . . . . . . . . Overloaded Fab Kills . | . . . . . . . . . . . . . . Fab Network Shutdowns 1 | . . . . . . . . . . . . 1 . Hacking | -11 -10 -10 -9 -9 -9 -8 -8 -8 -8 -6 -5 -4 -3 --------- Run | Scr Mat Min Mat Min Exi Min Mat Sto Rec Fac Fac Fac Res Machines Accessed 41 | . 5 1 6 . 2 . 4 6 10 2 3 2 . Terminals 24 | . 5 1 4 . . . 2 6 4 1 1 . . Fabricators 1 | . . . . . . . . . . . . 1 . Repair Stations 3 | . . . 1 . . . 1 . . . . 1 . Recycling Units 8 | . . . . . . . . . 6 . 2 . . Scanalyzers 3 | . . . 1 . . . 1 . . 1 . . . Garrison Access . | . . . . . . . . . . . . . . Total Hacks 94 | . 14 3 19 . 6 . 12 14 13 4 4 5 . Successful 59 | . 9 . 16 . 6 . 7 5 8 1 3 4 . Failed 35 | . 5 3 3 . . . 5 9 5 3 1 1 . Catastrophic 3 | . . . . . . . . . 1 . 1 1 . Database Lockouts . | . . . . . . . . . . . . . . Manual 13 | . . . . . 1 . . 1 9 . 2 . . Terminals 56 | . 14 3 10 . . . 6 14 5 2 2 . . Fabricators 4 | . . . . . . . . . . . . 4 . Repair Stations 7 | . . . 3 . . . 3 . . . . 1 . Recycling Units 10 | . . . . . . . . . 8 . 2 . . Scanalyzers 11 | . . . 6 . . . 3 . . 2 . . . Garrison Access . | . . . . . . . . . . . . . . Terminal Hacks 34 | . 9 . 8 . 6 . 3 5 2 . 1 . . Record 5 | . . . . . 5 . . . . . . . . Robot Analysis 1 | . . . . . . . 1 . . . . . . Prototype ID Bank 4 | . 2 . 1 . . . 1 . . . . . . Open Door 1 | . . . . . . . . 1 . . . . . Level Access Points 1 | . . . . . . . . . . . 1 . . Alert Level 4 | . 1 . 1 . . . . . 2 . . . . Unreport Threat 1 | . 1 . . . . . . . . . . . . Locate Traps 4 | . 1 . 2 . . . . 1 . . . . . Disarm Traps 1 | . . . 1 . . . . . . . . . . Surveillance Status 1 | . 1 . . . . . . . . . . . . Patrol Status 1 | . 1 . . . . . . . . . . . . Hauler Manifests 2 | . . . 1 . . . 1 . . . . . . Registered Prototypes 1 | . 1 . . . . . . . . . . . . Zone Layout 6 | . 1 . 2 . . . . 3 . . . . . EX-Prototype ID Bank 1 | . . . . . 1 . . . . . . . . Fabricator Hacks 3 | . . . . . . . . . . . . 3 . Load Schematic 1 | . . . . . . . . . . . . 1 . Build 2 | . . . . . . . . . . . . 2 . Repair Station Hacks 5 | . . . 2 . . . 2 . . . . 1 . Scan Component 2 | . . . 1 . . . 1 . . . . . . Repair 2 | . . . 1 . . . 1 . . . . . . Refit 1 | . . . . . . . . . . . . 1 . Recycling Unit Hacks . | . . . . . . . . . . . . . . Scanalyzer 9 | . . . 6 . . . 2 . . 1 . . . Insert Component 5 | . . . 3 . . . 1 . . 1 . . . Analyze 4 | . . . 3 . . . 1 . . . . . . Garrison Access Hacks . | . . . . . . . . . . . . . . Unauthorized Hacks 8 | . . . . . . . . . 6 . 2 . . Terminals . | . . . . . . . . . . . . . . Fabricators . | . . . . . . . . . . . . . . Repair Stations . | . . . . . . . . . . . . . . Recycling Units 8 | . . . . . . . . . 6 . 2 . . Tunnel 8 | . . . . . . . . . 6 . 2 . . Scanalyzers . | . . . . . . . . . . . . . . Garrison Access . | . . . . . . . . . . . . . . Data Cores Recovered . | . . . . . . . . . . . . . . Used . | . . . . . . . . . . . . . . Hacking Detections 21 | . 3 1 5 . . . 2 4 2 2 1 1 . Full Trace Events 3 | . . . 1 . . . 1 1 . . . . . Feedback Events . | . . . . . . . . . . . . . . Feedback Blocked . | . . . . . . . . . . . . . . Robot Schematics Acquired . | . . . . . . . . . . . . . . Robots Built . | . . . . . . . . . . . . . . Matter . | . . . . . . . . . . . . . . Time . | . . . . . . . . . . . . . . Total Robot Build Rating . | . . . . . . . . . . . . . . Part Schematics Acquired 4 | . . . 3 . . . 1 . . . . . . Parts Built 2 | . . . . . . . . . . . . 2 . Matter 256 | . . . . . . . . . . . . 256 . Time 64 | . . . . . . . . . . . . 64 . Total Part Build Rating 16 | . . . . . . . . . . . . 16 . Parts Repaired 2 | . . . 1 . . . 1 . . . . . . Time 70 | . . . 32 . . . 38 . . . . . . Parts Recycled . | . . . . . . . . . . . . . . Recycled Matter . | . . . . . . . . . . . . . . Retrieved Matter . | . . . . . . . . . . . . . . Retrieved Components . | . . . . . . . . . . . . . . Parts Scanalyzed 4 | . . . 3 . . . 1 . . . . . . Part Schematics Acquired 4 | . . . 3 . . . 1 . . . . . . Parts Damaged . | . . . . . . . . . . . . . . Bothacking | -11 -10 -10 -9 -9 -9 -8 -8 -8 -8 -6 -5 -4 -3 ------------ Run | Scr Mat Min Mat Min Exi Min Mat Sto Rec Fac Fac Fac Res Used RIF Installer . | . . . . . . . . . . . . . . Robots Hacked 14 | . . 2 . . 4 . . . 8 . . . . Non-combat 11 | . . 2 . . 3 . . . 6 . . . . Combat 3 | . . . . . 1 . . . 2 . . . . Robot Hacks Applied 18 | . . 3 . . 4 . . . 11 . . . . parse_system 13 | . . 3 . . 4 . . . 6 . . . . no_distress 1 | . . . . . . . . . 1 . . . . find_recycling 4 | . . . . . . . . . 4 . . . . Relay Couplers Released . | . . . . . . . . . . . . . . Robots Rewired 13 | . . . . . . . . . 13 . . . . Allies Hacked . | . . . . . . . . . . . . . . Hacks Repelled . | . . . . . . . . . . . . . . Allies | -11 -10 -10 -9 -9 -9 -8 -8 -8 -8 -6 -5 -4 -3 -------- Run | Scr Mat Min Mat Min Exi Min Mat Sto Rec Fac Fac Fac Res Total Allies 29 | . . 4 . 2 . . . 10 13 . . . . Largest Group 13 | . . 4 1 2 2 . . 10 13 8 3 . . Highest-Rated Group 221 | . . 71 8 41 41 . . 173 221 147 44 . . Highest-Rated Ally 34 | . . 31 8 31 31 . . 29 34 34 19 . . Total Orders 11 | . . . 1 . . . . 1 2 4 3 . . STAY 2 | . . . . . . . . 1 . 1 . . . FOLLOW 2 | . . . . . . . . . 1 1 . . . GUARD 1 | . . . 1 . . . . . . . . . . PICKUP 2 | . . . . . . . . . 1 1 . . . COLLECT 1 | . . . . . . . . . . 1 . . . EXPLORE 3 | . . . . . . . . . . . 3 . . Ally Attacks 187 | . . 26 3 . . . . 90 46 22 . . . Total Damage 4135 | . . 322 . . . . . 1216 923 1674 . . . Kills 44 | . . 4 . . . . . 11 20 9 . . . Allies Corrupted . | . . . . . . . . . . . . . . Allies Melted . | . . . . . . . . . . . . . . Intel | -11 -10 -10 -9 -9 -9 -8 -8 -8 -8 -6 -5 -4 -3 ------- Run | Scr Mat Min Mat Min Exi Min Mat Sto Rec Fac Fac Fac Res Robot Analysis Total 1 | . . . . . . . 1 . . . . . . Derelict Logs Recovered 2 | . . 1 . 1 . . . . . . . . . Drone Launches 4 | . . . . . . . . 1 . . 3 . . Drone Recoveries 1 | . . . . . . . . . . . 1 . . Exploration | -11 -10 -10 -9 -9 -9 -8 -8 -8 -8 -6 -5 -4 -3 ------------- Run | Scr Mat Min Mat Min Exi Min Mat Sto Rec Fac Fac Fac Res Turns Passed 9987 | 67 842 1027 1272 973 445 253 536 877 979 658 708 441 909 Spaces Moved 5226 | 40 443 596 584 556 263 135 260 367 443 391 313 346 489 Core 341 | 10 . . . . . . . . . . 91 126 114 Treads 4633 | 30 443 596 584 556 263 135 260 367 443 391 222 . 343 Legs . | . . . . . . . . . . . . . . Wheels . | . . . . . . . . . . . . . . Hover 252 | . . . . . . . . . . . . 220 32 Flight . | . . . . . . . . . . . . . . Fastest Speed 50 | 50 160 160 160 160 160 160 152 152 152 152 50 76 50 Average Speed 152 | 142 160 160 160 160 160 160 156 152 152 153 139 118 145 Slowest Speed 286 | 160 160 160 180 160 160 160 160 152 152 155 180 286 286 Overloaded Moves . | . . . . . . . . . . . . . . Propulsion Burnouts . | . . . . . . . . . . . . . . Robots Hopped . | . . . . . . . . . . . . . . Cave-ins Triggered 2 | . . . . . . . . 1 . . . . 1 Exploration Rate (%) 46 | 3 88 98 50 98 65 26 17 63 92 14 13 9 9 Regions Visited 13 Branch Regions 6 Pre-discovered Areas 10 | . . . . 1 1 . . . 6 . 2 . . Known Exits Taken 5 | . . . . . . . 1 1 1 1 1 . . Unknown Exits Taken 8 | 1 1 1 1 1 1 1 . . . . . 1 . Scrap Searched 3 | . . 2 . 1 . . . . . . . . . Spaces Dug 92 | . . . . . . . . 13 . 2 21 . 56 Terrain Destroyed 244 | . 16 17 . 25 . . . 18 10 2 58 12 86 Melee 18 | . . . . . . . . 13 . 2 3 . . Projectile 36 | . . . . . . . . . . . 2 . 34 AOE 190 | . 16 17 . 25 . . . 5 10 . 53 12 52 Terrain Rammed . | . . . . . . . . . . . . . . Walls Destroyed . | . . . . . . . . . . . . . . Machines Disabled . | . . . . . . . . . . . . . . Actions | -11 -10 -10 -9 -9 -9 -8 -8 -8 -8 -6 -5 -4 -3 --------- Run | Scr Mat Min Mat Min Exi Min Mat Sto Rec Fac Fac Fac Res Total 6436 | 47 507 647 769 593 283 148 363 607 608 434 458 374 598 Wait 420 | . 8 28 53 2 . . 53 174 26 11 57 . 8 Move 5212 | 39 442 595 583 555 262 134 259 366 442 390 312 345 488 Hop . | . . . . . . . . . . . . . . Pick Up 75 | 2 6 1 9 . 9 . 17 4 . 5 1 5 16 Fast Attach 67 | 6 6 1 13 3 2 1 5 3 1 4 5 5 12 Attach 37 | . . 1 4 . . 1 2 5 . 2 12 1 9 Detach 24 | . 2 . 1 . 1 . 2 1 . . 3 3 11 Swap 50 | . 1 4 5 5 2 1 5 7 5 4 11 . . Drop 59 | . 6 1 16 2 3 . 8 4 . 9 4 1 5 Fire 319 | . 35 8 80 18 . 10 12 22 36 5 48 1 44 Melee 132 | . . 3 . . 4 . . 20 97 3 5 . . Ram 3 | . . . . . . . . . . . . . 3 Kick . | . . . . . . . . . . . . . . Crush 23 | . 1 5 5 8 . 1 . 1 . 1 . . 1 Escape Stasis 14 | . . . . . . . . . . . . 13 1 Rewire 1 | . . . . . . . . . 1 . . . . Trap . | . . . . . . . . . . . . . . Miscellaneous . | . . . . . . . . . . . . . . Route ------- -11/Scrapyard -10/Materials (discovered 3 exits: *Mat / *Min x2) -10/Mines (discovered 2 exits: *Mat x2) -9/Materials (discovered 2 exits: *Mat / [*Min]) -9/Mines (discovered 3 exits: *Mat x2 / *Exi) -9/Exiles -8/Mines -8/Materials -8/Storage -8/Recycling -6/Factory -5/Factory (discovered 4 exits: *Fac x4) -4/Factory -3/Research History --------- Turn | Location | Event 10 | -11/Scrapyard | Discovered new exit (range 15) 68 | -11/Scrapyard | Entered Materials 315 | -10/Materials | Build established: Mutant 475 | -10/Materials | Discovered new exit (range 16) 546 | -10/Materials | Discovered new exit (range 10) 596 | -10/Materials | Discovered new exit (range 6) 910 | -10/Materials | Entered Mines 938 | -10/Mines | Learned Materials terminal intel 1231 | -10/Mines | Received a Mining Laser from a helpful Derelict 1317 | -10/Mines | Discovered new exit (range 5) 1419 | -10/Mines | Discovered new exit (range 5) 1432 | -10/Mines | Assisted by bots powering up and referring to "LRC-V3" 1937 | -10/Mines | Entered Materials 1937 | -9/Materials | Accompanied by 1 ally 1937 | -9/Materials | Evolved 2 slots: Utility x1, Weapon x1 1938 | -9/Materials | Loaded intel: 11 terminal locations 2098 | -9/Materials | Discovered new exit (range 16) 2258 | -9/Materials | Build established: Skirmisher 2743 | -9/Materials | Discovered new exit (range 9) 2744 | -9/Materials | Repaired Hvy. Assault Rifle? 3053 | -9/Materials | Lost 3 parts (1p1u1w) 3065 | -9/Materials | Destroyed 7 combat bots 3209 | -9/Materials | Entered Mines 3344 | -9/Mines | Build established: Scavenger-Tank 3561 | -9/Mines | Found a hidden stash of uninstalled traps 3581 | -9/Mines | Discovered new exit (range 10) 3602 | -9/Mines | Learned Materials stockpile data 3651 | -9/Mines | Learned location of Storage (-8) 3889 | -9/Mines | Discovered new exit (range 8) 3911 | -9/Mines | Deemed a non-threat by the Exiles lab entrance 3911 | -9/Mines | Discovered new exit (range 5) 4182 | -9/Mines | Entered Exiles 4182 | -9/Exiles | Accompanied by 2 allies 4212 | -9/Exiles | Led the pair of lost Derelicts to a safe place 4225 | -9/Exiles | Met 8R-AWN 4255 | -9/Exiles | Met EX-HEX 4314 | -9/Exiles | Met EX-BIN 4339 | -9/Exiles | Aligned with FarCom system 4340 | -9/Exiles | Given EX-Vault access code 4379 | -9/Exiles | Opened EX-Vault 4390 | -9/Exiles | Found 0b10 Alert Chip 4396 | -9/Exiles | Found Lightpack 2.0 4416 | -9/Exiles | Found YOLO Cannon 4452 | -9/Exiles | Warned to stay clear of 0b10 Research branches 4497 | -9/Exiles | Met EX-DEC 4539 | -9/Exiles | Learned location of Zion (-6) 4614 | -9/Exiles | Discovered new exit (range 10) 4627 | -9/Exiles | Stole two prototypes: Lightpack 2.0, YOLO Cannon 4627 | -9/Exiles | Entered Mines 4683 | -8/Mines | Build established: Hauler-Mutant 4729 | -8/Mines | Core integrity fell below 50% 4869 | -8/Mines | Discovered new exit (range 7) 4880 | -8/Mines | Entered Materials 4880 | -8/Materials | Evolved 2 slots: Utility x1, Weapon x1 5009 | -8/Materials | Build established: Hauler-Skirmisher 5227 | -8/Materials | Repaired Lgt. Nuclear Core 5297 | -8/Materials | Discovered new exit (range 8) 5323 | -8/Materials | Identified exit to Storage 5416 | -8/Materials | Entered Storage 5518 | -8/Storage | Crushed by falling debris 5518 | -8/Storage | System corruption reached 10% 5549 | -8/Storage | Lost 4 parts (1p1u2w) 5555 | -8/Storage | Assisted by bots powering up and referring to "LRC-V3" 5944 | -8/Storage | Destroyed 7 combat bots 6013 | -8/Storage | Garrison activated, responded to threat 6287 | -8/Storage | Used back door to open Recycling access 6287 | -8/Storage | Discovered new exit (range 5) 6291 | -8/Storage | Identified exit to Recycling 6293 | -8/Storage | Entered Recycling 6315 | -8/Recycling | Spotter reported a threat 6410 | -8/Recycling | Spotter reported a threat 6431 | -8/Recycling | Spotter reported a threat 6480 | -8/Recycling | Spotter reported a threat 6525 | -8/Recycling | Spotter reported a threat 6577 | -8/Recycling | Spotter reported a threat 6579 | -8/Recycling | Spotter reported a threat 6588 | -8/Recycling | Spotter reported a threat 6619 | -8/Recycling | Build established: Hauler-Mutant 6623 | -8/Recycling | Spotter reported a threat 6662 | -8/Recycling | Spotter reported a threat 6664 | -8/Recycling | Spotter reported a threat 6713 | -8/Recycling | Spotter reported a threat 6735 | -8/Recycling | Spotter reported a threat 6742 | -8/Recycling | Spotter reported a threat 6759 | -8/Recycling | Spotter reported a threat 6759 | -8/Recycling | Spotter reported a threat 6805 | -8/Recycling | Spotter reported a threat 6825 | -8/Recycling | Spotter reported a threat 6836 | -8/Recycling | Spotter reported a threat 6868 | -8/Recycling | Spotter reported a threat 6872 | -8/Recycling | Spotter reported a threat 6898 | -8/Recycling | Spotter reported a threat 6915 | -8/Recycling | Spotter reported a threat 6937 | -8/Recycling | Spotter reported a threat 6951 | -8/Recycling | Spotter reported a threat 6966 | -8/Recycling | Spotter reported a threat 7006 | -8/Recycling | Spotter reported a threat 7014 | -8/Recycling | Spotter reported a threat 7019 | -8/Recycling | Spotter reported a threat 7055 | -8/Recycling | Spotter reported a threat 7067 | -8/Recycling | Spotter reported a threat 7072 | -8/Recycling | Spotter reported a threat 7099 | -8/Recycling | Spotter reported a threat 7108 | -8/Recycling | Spotter reported a threat 7120 | -8/Recycling | Spotter reported a threat 7134 | -8/Recycling | Build established: Commander-Mutant 7146 | -8/Recycling | Spotter reported a threat 7147 | -8/Recycling | Spotter reported a threat 7198 | -8/Recycling | Spotter reported a threat 7198 | -8/Recycling | Spotter reported a threat 7198 | -8/Recycling | Spotter reported a threat 7198 | -8/Recycling | Spotter reported a threat 7232 | -8/Recycling | Discovered new exit (range 9) 7243 | -8/Recycling | Spotter reported a threat 7243 | -8/Recycling | Spotter reported a threat 7243 | -8/Recycling | Spotter reported a threat 7246 | -8/Recycling | Identified exit to Factory 7251 | -8/Recycling | Spotter reported a threat 7272 | -8/Recycling | Entered Factory 7272 | -6/Factory | Accompanied by 8 allies 7272 | -6/Factory | Evolved 4 slots: Power x1, Propulsion x1, Utility x1, Weapon x1 7274 | -6/Factory | FarCom data flow suspended 7571 | -6/Factory | Build established: Commander-Tank 7875 | -6/Factory | Discovered new exit (range 11) 7889 | -6/Factory | Identified exit to Factory 7930 | -6/Factory | Entered another Factory area 7930 | -5/Factory | Accompanied by 3 allies 7930 | -5/Factory | Evolved 2 slots: Utility x2 8157 | -5/Factory | Identified exit to Factory 8223 | -5/Factory | Build established: Hauler-Skirmisher 8230 | -5/Factory | First assault squad dispatched 8507 | -5/Factory | Lost 8 parts (1p2n1u4w) 8543 | -5/Factory | Released all parts (9) 8572 | -5/Factory | Lost 5 parts (2n2u1w) 8635 | -5/Factory | Core integrity fell below 50% 8638 | -5/Factory | Entered another Factory area 8638 | -4/Factory | Evolved 2 slots: Propulsion x1, Utility x1 8741 | -4/Factory | Local fabrication network quarantined 8803 | -4/Factory | Fabricated Antimissile System? 8847 | -4/Factory | Build established: Hauler-Mutant 8971 | -4/Factory | Discovered new exit (range 14) 9079 | -4/Factory | Entered Research 9079 | -3/Research | Evolved 2 slots: Utility x2 9799 | -3/Research | Garrison activated, responded to threat 9813 | -3/Research | Lost 5 parts (1p1n1u2w) 9908 | -3/Research | Crushed by falling debris 9909 | -3/Research | System corruption reached 10% 9915 | -3/Research | Released all parts (8) 9928 | -3/Research | Core integrity fell below 50% 9944 | -3/Research | Lost 5 parts (1p3u1w) 9956 | -3/Research | Core integrity fell below 20% 9988 | -3/Research | Destroyed by P-80 Master with Gamma Rifle Last Messages --------------- 09915_ Released Adv. Medium Treads. 09916_ Dropped Lyr. Heavy Armor Plating. 09916_ Acquired Centrium Heavy Treads. 09918_ Slammed into P-80 Master. 09919_ System corrupted: Heat flow error (+182). 09919_ Slammed into P-80 Master. 09938_ System corrupted: Component data lost. 09940_ Slug penetrates Wall. 09949_ S-43 Plague suffers critical hit. 09949_ Destroyed Xenon Bombardment Thruster. 09949_ S-43 Plague destroyed. 09953_ Dropped Centrium Heavy Treads. 09954_ Acquired Centrium Heavy Treads. 09955_ P-80 Master resets S-43 Plague, system corruption cleaned. 09957_ System corrupted: Component data lost. 09957_ S-43 Plague destroyed. 09959_ P-80 Master resets P-80 Master, system corruption cleaned. 09984_ Quantum Generator explodes. 09984_ Slug penetrates Earth. 09985_ The unstable cave ceiling collapses. Map ----- +----------------------------------------------------+ | ?????????????????????????????????????????????????? | | ?????????????????????????????????????????????????? | | ?????????????????????????????????????????????????? | | ?????????????????????????????????????????????????? | | ?????????????????????????????????????????????????? | | ?????????????????????????????????????????????????? | | ?????????????????????????????????????????????????? | | ?????????????????????????????????????????????????? | | ?????????????????????????????????????????????????? | | ?????????????????????????????????????????????????? | | ?????????????????????????????????????????????????? | | ?????????????????????????????????????????????????? | | ?????????????????????????????????????????????????? | | ?????????????????????????????????????????????????? | | ????????????????##???????????????????????????????? | | ????????????????# ##?????????????????????????????? | | ????????????????? #########????????????????????? | | ?????????????????# ##???????????????????? | | ?????????????????# #???????????????????? | | ??????????????#### ##??????????????????? | | ??????????????# ! ???????????????????? | | ??????????????# #???????????????????? | | ??????????????# #???????????????????? | | ??????????????# #???????????????????? | | ??????????????# #???????????????????? | | ??????????????# @ #???????????????????? | | ??????????????# ????????????? | | ??????????????# """"""" # ????????? | | ??????????????# """"""" # ?????????? | | ??????????????# """"""" # tR ?????????? | | ??????????????# #? #######??????????? | | ??????????????# #?? #????????????????? | | ??????????#############p#### #????????????????? | | ??????????# # #????????????????? | | ??????????+ # p #????????????????? | | ??????????# """" # #????????????????? | | ??????????# ""R"" / #????????????????? | | ?????????# "" "" # ########????????????????? | | ######### # #???????????????????????? | | / # #???????????????????????? | | ## ###### # ??????????????????????? | | ???# #????########### ?????????????????????? | | ??## ##?????????????# ???????????????????? | | ??# #?????????????# ??????????????????? | | ??# % #?????????????# ###+###?????????????????? | | ??# #?????????????# #???????????????????????? | | ####+#########??????# #???????????????????????? | | # # ??????? #???????????????????????? | | # # ??????? #???????????????????????? | | + # ???????? #???????????????????????? | +----------------------------------------------------+ Best States ------------- Heat Dissipation 67 Energy Generation 29 Energy Capacity 450 Matter Stores 300 Matter Capacity 300 Sight Range 16 Robot Scan Range 20 Terrain Scan Range 14 Terrain Scan Density 10 Jamming Range 12 Armor Coverage 300 Resistance: KI 20 Weapon Shielding 33 Evasion (%) 50 Targeting Accuracy 8 Recoil Reduction 4 Defensive Hacking 10 Item Schematics ----------------- Grenade Launcher | -9/Materials | Scanalyzed Katana | -9/Materials | Scanalyzed Signal Interpreter | -9/Materials | Scanalyzed Flak Gun | -8/Materials | Scanalyzed Robot Schematics ------------------ None Fabricated ------------ Antimissile System | x2 | -4/Factory | Preloaded Alien Tech Used ----------------- None Achievements -------------- \\IAMDERELICT Challenges ------------ None Game ------ Seed RefineryAlphaBiocell Manual? 0 Play Time 02:18:07 Cumulative 42.5 hours Start 2021.07.27 @ 14:08:15 End 2021.07.31 @ 21:23:19 Sessions 25 Manual Loads 0 Difficulty Rogue Special Mode None Game No. 29 Rogue 29 Adventurer 0 Explorer 0 Win Type - Total 0 Types 0/0/0/0/0/0/0/0/0 Lore% 29 Gallery% 49 Achievement% 31 Wizard Run 0 Options --------- ASCII 0 Keyboard 1 Movement Vi Keybinds 0 Fullscreen 2 Font 18/Cog Map View 76x50 Tactical HUD 1 Map Filters NONE Filters NONE Steam 0 RUN: e68f35d6-526f-4871-8c15-c5461e723506